Workbook

Sheet Cotizador
A1: PÓLIZA DE SEGURO DE ARRENDAMIENTO INDIVIDUAL | G1: ¿CÓMO USAR ESTE COTIZADOR?
A2: Datos inmueble | G2: Diligenciar únicamente las casillas en azul
A3: Destinación inmueble | B3: Residencial | C3: ¿Aplica IVA sobre canon? | E3: No | G3: Conoce el video de esta solución | J3: Vínculo
A4: Plan de arrendamiento | B4: Clásico | G4: Conoce el condicionado general | J4: Vínculo
A5: Duración contrato (meses) | B5: 12 | G5: Conoce los detalles de la solución tradicional | J5: Vínculo
A6: Canon mensual (sin IVA) | B6: Administración mensual | C6: Asistencia domiciliaria | E6: =IF(OR(B4=Listas!B2,B4=Listas!B5),"","Daños y faltantes") -> Daños y faltantes
A7: 1000000 | B7: 100000 | C7: Si | E7: 500000 | G7: =IF(E7=0,"",IF(E7<FACTORES!G13,"Error: El valor de los daños y faltantes no puede ser menor a $300.000",IF(AND(B3="Vivienda",E7>FACTORES!H13),"Error: El valor de los daños y faltantes no puede ser mayor a $20.000.000 en vivienda",IF(AND(B3="Comercial",E7>FACTORES!H14),"Error: El valor de los daños y faltantes no puede ser mayor a $40.000.000 en comercial","")))) -> 
A9: Coberturas
C10: Valor asegurado | D10: Prima | E10: IVA
A11: Básico arrendamiento | C11: =A7*B5 -> 12000000 | D11: =IFERROR(C11*(VLOOKUP(B4&B5,FACTORES!A2:D49,3,FALSE)),0) -> 252100.8403 | E11: =D11*19% -> 47899.15966
A12: IVA Inmuebles comerciales | C12: =IF(AND(B3="Comercial",E3="Si"),A7*0.19*B5,0) -> 0 | D12: =IFERROR(IF(AND(B3="Comercial",E3="Si"),C12*(VLOOKUP(B4&B5,FACTORES!A2:D49,3,FALSE)),0),0) -> 0 | E12: 0
A13: Administración | C13: =B7*B5 -> 1200000 | D13: =IFERROR(C13*(VLOOKUP(B4&B5,FACTORES!A2:D49,3,FALSE)),0) -> 25210.08403 | E13: 4789.915966
A14: Servicios públicos | C14: =IF(B4="Básico",0,IF(A7<=4000000,A7*2,IF(A7<=7999999,A7*1.5,15000000))) -> 2000000 | D14: 0 | E14: 0
A15: =IF(OR(B4=Listas!B2,B4=Listas!B5),"","Daños y faltantes") -> Daños y faltantes | C15: =IF(B4="Básico",0,E7) -> 500000 | D15: =C15*0.03 -> 15000 | E15: 2850
A16: Asistencia | C16: 0 | D16: =IF($C$7="No",0,IF($B$3="Comercial",55000,IF($B$3="Residencial",55000,0))) -> 55000 | E16: =D16*19% -> 10450
A17: TOTAL VALOR ASEGURADO | C17: =SUM(C11:C16) -> 15700000 | D17: =IF(SUM(D11:D16)<150000,150000,SUM(D11:D16)) -> 347310.9244 | E17: =IF(D17=150000,D17*0.19,SUM(E11:E16)) -> 65989.07563
A18: TOTAL A PAGAR | C18: =IF(G7<>"","Error",D17+E17) -> 413300

Sheet Listas (hidden)
A2: Comercial | B2: Básico | C2: Si
A3: Residencial | B3: Clásico | C3: No
B4: Global
B5: Concesión de Espacios

Sheet Impresión Comercial
A1: ÚNICAMENTE LLENAR LA "INFORMACIÓN GENERAL" EN ESTA SECCIÓN
A4: PÓLIZA DE SEGURO DE ARRENDAMIENTO INDIVIDUAL
A5: Información General
A6: Fecha cotización | B6: =TODAY() -> 2024-08-15 | C6: Vigencia final | D6: =B6+30 -> 2024-09-14 | E6: =Cotizador!#REF! -> 
A7: Número solicitud | C7: Código asesor | D7: 0 | E7: =Cotizador!#REF! -> 
A8: Identificación tomador
A9: Nombre tomador
A10: Cédula afianzado
A11: Nombre afianzado
A12: Asegurado beneficiario
A13: Dirección inmueble
A15: Datos inmueble
A16: Destinación | B16: =Cotizador!B3 -> Residencial
A17: Plan de arrendamiento | B17: =Cotizador!B4 -> Clásico | C17: =Cotizador!C4 -> 0 | D17: =Cotizador!D4 -> 0 | E17: =Cotizador!E4 -> 0
A18: Duración contrato | B18: =Cotizador!B5 -> 12
A19: Canon | B19: Administración | C19: Asistencia domiciliaria | E19: =IF(OR(B17=Listas!B2,B17=Listas!B5),"","Daños y faltantes") -> Daños y faltantes
A20: =Cotizador!A7 -> 1000000 | B20: =Cotizador!B7 -> 100000 | C20: =Cotizador!C7 -> Si | E20: =Cotizador!E7 -> 500000
A22: Coberturas
C23: Valor asegurado | D23: Prima | E23: IVA
A24: Básico arrendamiento | C24: =Cotizador!C11 -> 12000000 | D24: =Cotizador!D11 -> 252100.8403 | E24: =Cotizador!E11 -> 47899.15966
A25: IVA Inmuebles Comerciales | C25: =Cotizador!C12 -> 0 | D25: =Cotizador!D12 -> 0 | E25: =Cotizador!E12 -> 0
A26: Administración | C26: =Cotizador!C13 -> 1200000 | D26: =Cotizador!D13 -> 25210.08403 | E26: =Cotizador!E13 -> 4789.915966
A27: Servicios públicos | C27: =Cotizador!C14 -> 2000000 | D27: =Cotizador!D14 -> 0 | E27: =Cotizador!E14 -> 0
A28: Daños y faltantes | C28: =Cotizador!C15 -> 500000 | D28: =Cotizador!D15 -> 15000 | E28: =Cotizador!E15 -> 2850
A29: Asistencia | C29: =Cotizador!C16 -> 0 | D29: =Cotizador!D16 -> 55000 | E29: =Cotizador!E16 -> 10450
A30: TOTAL VALOR ASEGURADO | C30: =SUM(C24:C29) -> 15700000 | D30: =IF(SUM(D24:D29)<150000,150000,SUM(D24:D29)) -> 347310.9244 | E30: =SUM(E24:E29) -> 65989.07563
A32: _____________________________________________________________________________________________
A33: TOTAL A PAGAR | C33: =Cotizador!C18 -> 413300 | D33: =Cotizador!D18 -> 0
A35: La presente cotización no constituye aceptación del riesgo, por parte de Seguros Generales Suramericana S.A. hasta tanto la Compañía se manifieste de manera expresa y en documento escrito.

Sheet FACTORES (hidden)
A1: Plan | B1: Meses | C1: Tasa | D1: Porcentaje sobre el canon | K1: Tasa - Comercial | L1: Tasa - Residencial | M1: Porcentaje sobre el canon - Comercial | N1: Porcentaje sobre el canon - Residencial
A2: Básico1 | B2: 1 | C2: =IF(Cotizador!$B$3="Comercial",FACTORES!K2,IF(Cotizador!$B$3="Residencial",FACTORES!L2,"Revisar")) -> 0.01680672269 | D2: =IF(Cotizador!$B$3="Comercial",FACTORES!M2,IF(Cotizador!$B$3="Residencial",FACTORES!N2,"Revisar")) -> 0.24 | K2: 0.01960784314 | L2: 0.01680672269 | M2: 0.28 | N2: 0.24
A3: Básico2 | B3: 2 | C3: =IF(Cotizador!$B$3="Comercial",FACTORES!K3,IF(Cotizador!$B$3="Residencial",FACTORES!L3,"Revisar")) -> 0.01680672269 | D3: =IF(Cotizador!$B$3="Comercial",FACTORES!M3,IF(Cotizador!$B$3="Residencial",FACTORES!N3,"Revisar")) -> 0.24 | K3: 0.01960784314 | L3: 0.01680672269 | M3: 0.28 | N3: 0.24
A4: Básico3 | B4: 3 | C4: =IF(Cotizador!$B$3="Comercial",FACTORES!K4,IF(Cotizador!$B$3="Residencial",FACTORES!L4,"Revisar")) -> 0.01680672269 | D4: =IF(Cotizador!$B$3="Comercial",FACTORES!M4,IF(Cotizador!$B$3="Residencial",FACTORES!N4,"Revisar")) -> 0.24 | K4: 0.01960784314 | L4: 0.01680672269 | M4: 0.28 | N4: 0.24
A5: Básico4 | B5: 4 | C5: =IF(Cotizador!$B$3="Comercial",FACTORES!K5,IF(Cotizador!$B$3="Residencial",FACTORES!L5,"Revisar")) -> 0.01680672269 | D5: =IF(Cotizador!$B$3="Comercial",FACTORES!M5,IF(Cotizador!$B$3="Residencial",FACTORES!N5,"Revisar")) -> 0.24 | K5: 0.01960784314 | L5: 0.01680672269 | M5: 0.28 | N5: 0.24
A6: Básico5 | B6: 5 | C6: =IF(Cotizador!$B$3="Comercial",FACTORES!K6,IF(Cotizador!$B$3="Residencial",FACTORES!L6,"Revisar")) -> 0.01680672269 | D6: =IF(Cotizador!$B$3="Comercial",FACTORES!M6,IF(Cotizador!$B$3="Residencial",FACTORES!N6,"Revisar")) -> 0.24 | K6: 0.01960784314 | L6: 0.01680672269 | M6: 0.28 | N6: 0.24
A7: Básico6 | B7: 6 | C7: =IF(Cotizador!$B$3="Comercial",FACTORES!K7,IF(Cotizador!$B$3="Residencial",FACTORES!L7,"Revisar")) -> 0.01680672269 | D7: =IF(Cotizador!$B$3="Comercial",FACTORES!M7,IF(Cotizador!$B$3="Residencial",FACTORES!N7,"Revisar")) -> 0.24 | K7: 0.01960784314 | L7: 0.01680672269 | M7: 0.28 | N7: 0.24
A8: Básico7 | B8: 7 | C8: =IF(Cotizador!$B$3="Comercial",FACTORES!K8,IF(Cotizador!$B$3="Residencial",FACTORES!L8,"Revisar")) -> 0.01540616246 | D8: =IF(Cotizador!$B$3="Comercial",FACTORES!M8,IF(Cotizador!$B$3="Residencial",FACTORES!N8,"Revisar")) -> 0.22 | K8: 0.01796666667 | L8: 0.01540616246 | M8: 0.26 | N8: 0.22
A9: Básico8 | B9: 8 | C9: =IF(Cotizador!$B$3="Comercial",FACTORES!K9,IF(Cotizador!$B$3="Residencial",FACTORES!L9,"Revisar")) -> 0.01400560224 | D9: =IF(Cotizador!$B$3="Comercial",FACTORES!M9,IF(Cotizador!$B$3="Residencial",FACTORES!N9,"Revisar")) -> 0.2 | K9: 0.01633333333 | L9: 0.01400560224 | M9: 0.23 | N9: 0.2
A10: Básico9 | B10: 9 | C10: =IF(Cotizador!$B$3="Comercial",FACTORES!K10,IF(Cotizador!$B$3="Residencial",FACTORES!L10,"Revisar")) -> 0.01400560224 | D10: =IF(Cotizador!$B$3="Comercial",FACTORES!M10,IF(Cotizador!$B$3="Residencial",FACTORES!N10,"Revisar")) -> 0.2 | K10: 0.01633333333 | L10: 0.01400560224 | M10: 0.23 | N10: 0.2
A11: Básico10 | B11: 10 | C11: =IF(Cotizador!$B$3="Comercial",FACTORES!K11,IF(Cotizador!$B$3="Residencial",FACTORES!L11,"Revisar")) -> 0.01400560224 | D11: =IF(Cotizador!$B$3="Comercial",FACTORES!M11,IF(Cotizador!$B$3="Residencial",FACTORES!N11,"Revisar")) -> 0.2 | K11: 0.01633333333 | L11: 0.01400560224 | M11: 0.23 | N11: 0.2
A12: Básico11 | B12: 11 | C12: =IF(Cotizador!$B$3="Comercial",FACTORES!K12,IF(Cotizador!$B$3="Residencial",FACTORES!L12,"Revisar")) -> 0.01400560224 | D12: =IF(Cotizador!$B$3="Comercial",FACTORES!M12,IF(Cotizador!$B$3="Residencial",FACTORES!N12,"Revisar")) -> 0.2 | F12: Daños y faltantes | K12: 0.01633333333 | L12: 0.01400560224 | M12: 0.23 | N12: 0.2
A13: Básico12 | B13: 12 | C13: =IF(Cotizador!$B$3="Comercial",FACTORES!K13,IF(Cotizador!$B$3="Residencial",FACTORES!L13,"Revisar")) -> 0.01400560224 | D13: =IF(Cotizador!$B$3="Comercial",FACTORES!M13,IF(Cotizador!$B$3="Residencial",FACTORES!N13,"Revisar")) -> 0.2 | F13: Vivienda | G13: 300000 | H13: 20000000 | K13: 0.01633333333 | L13: 0.01400560224 | M13: 0.23 | N13: 0.2
A14: Clásico1 | B14: 1 | C14: =IF(Cotizador!$B$3="Comercial",FACTORES!K14,IF(Cotizador!$B$3="Residencial",FACTORES!L14,"Revisar")) -> 0.02521008403 | D14: =IF(Cotizador!$B$3="Comercial",FACTORES!M14,IF(Cotizador!$B$3="Residencial",FACTORES!N14,"Revisar")) -> 0.36 | F14: Comercial | G14: 300000 | H14: 40000000 | K14: 0.02941176471 | L14: 0.02521008403 | M14: 0.42 | N14: 0.36
A15: Clásico2 | B15: 2 | C15: =IF(Cotizador!$B$3="Comercial",FACTORES!K15,IF(Cotizador!$B$3="Residencial",FACTORES!L15,"Revisar")) -> 0.02521008403 | D15: =IF(Cotizador!$B$3="Comercial",FACTORES!M15,IF(Cotizador!$B$3="Residencial",FACTORES!N15,"Revisar")) -> 0.36 | K15: 0.02941176471 | L15: 0.02521008403 | M15: 0.42 | N15: 0.36
A16: Clásico3 | B16: 3 | C16: =IF(Cotizador!$B$3="Comercial",FACTORES!K16,IF(Cotizador!$B$3="Residencial",FACTORES!L16,"Revisar")) -> 0.02521008403 | D16: =IF(Cotizador!$B$3="Comercial",FACTORES!M16,IF(Cotizador!$B$3="Residencial",FACTORES!N16,"Revisar")) -> 0.36 | K16: 0.02941176471 | L16: 0.02521008403 | M16: 0.42 | N16: 0.36
A17: Clásico4 | B17: 4 | C17: =IF(Cotizador!$B$3="Comercial",FACTORES!K17,IF(Cotizador!$B$3="Residencial",FACTORES!L17,"Revisar")) -> 0.02521008403 | D17: =IF(Cotizador!$B$3="Comercial",FACTORES!M17,IF(Cotizador!$B$3="Residencial",FACTORES!N17,"Revisar")) -> 0.36 | K17: 0.02941176471 | L17: 0.02521008403 | M17: 0.42 | N17: 0.36
A18: Clásico5 | B18: 5 | C18: =IF(Cotizador!$B$3="Comercial",FACTORES!K18,IF(Cotizador!$B$3="Residencial",FACTORES!L18,"Revisar")) -> 0.02521008403 | D18: =IF(Cotizador!$B$3="Comercial",FACTORES!M18,IF(Cotizador!$B$3="Residencial",FACTORES!N18,"Revisar")) -> 0.36 | K18: 0.02941176471 | L18: 0.02521008403 | M18: 0.42 | N18: 0.36
A19: Clásico6 | B19: 6 | C19: =IF(Cotizador!$B$3="Comercial",FACTORES!K19,IF(Cotizador!$B$3="Residencial",FACTORES!L19,"Revisar")) -> 0.02521008403 | D19: =IF(Cotizador!$B$3="Comercial",FACTORES!M19,IF(Cotizador!$B$3="Residencial",FACTORES!N19,"Revisar")) -> 0.36 | K19: 0.02941176471 | L19: 0.02521008403 | M19: 0.42 | N19: 0.36
A20: Clásico7 | B20: 7 | C20: =IF(Cotizador!$B$3="Comercial",FACTORES!K20,IF(Cotizador!$B$3="Residencial",FACTORES!L20,"Revisar")) -> 0.0231092437 | D20: =IF(Cotizador!$B$3="Comercial",FACTORES!M20,IF(Cotizador!$B$3="Residencial",FACTORES!N20,"Revisar")) -> 0.33 | K20: 0.02661064826 | L20: 0.0231092437 | M20: 0.38 | N20: 0.33
A21: Clásico8 | B21: 8 | C21: =IF(Cotizador!$B$3="Comercial",FACTORES!K21,IF(Cotizador!$B$3="Residencial",FACTORES!L21,"Revisar")) -> 0.02100840336 | D21: =IF(Cotizador!$B$3="Comercial",FACTORES!M21,IF(Cotizador!$B$3="Residencial",FACTORES!N21,"Revisar")) -> 0.3 | K21: 0.02450980392 | L21: 0.02100840336 | M21: 0.35 | N21: 0.3
A22: Clásico9 | B22: 9 | C22: =IF(Cotizador!$B$3="Comercial",FACTORES!K22,IF(Cotizador!$B$3="Residencial",FACTORES!L22,"Revisar")) -> 0.02100840336 | D22: =IF(Cotizador!$B$3="Comercial",FACTORES!M22,IF(Cotizador!$B$3="Residencial",FACTORES!N22,"Revisar")) -> 0.3 | K22: 0.02450980392 | L22: 0.02100840336 | M22: 0.35 | N22: 0.3
A23: Clásico10 | B23: 10 | C23: =IF(Cotizador!$B$3="Comercial",FACTORES!K23,IF(Cotizador!$B$3="Residencial",FACTORES!L23,"Revisar")) -> 0.02100840336 | D23: =IF(Cotizador!$B$3="Comercial",FACTORES!M23,IF(Cotizador!$B$3="Residencial",FACTORES!N23,"Revisar")) -> 0.3 | K23: 0.02450980392 | L23: 0.02100840336 | M23: 0.35 | N23: 0.3
A24: Clásico11 | B24: 11 | C24: =IF(Cotizador!$B$3="Comercial",FACTORES!K24,IF(Cotizador!$B$3="Residencial",FACTORES!L24,"Revisar")) -> 0.02100840336 | D24: =IF(Cotizador!$B$3="Comercial",FACTORES!M24,IF(Cotizador!$B$3="Residencial",FACTORES!N24,"Revisar")) -> 0.3 | K24: 0.02450980392 | L24: 0.02100840336 | M24: 0.35 | N24: 0.3
A25: Clásico12 | B25: 12 | C25: =IF(Cotizador!$B$3="Comercial",FACTORES!K25,IF(Cotizador!$B$3="Residencial",FACTORES!L25,"Revisar")) -> 0.02100840336 | D25: =IF(Cotizador!$B$3="Comercial",FACTORES!M25,IF(Cotizador!$B$3="Residencial",FACTORES!N25,"Revisar")) -> 0.3 | K25: 0.02450980392 | L25: 0.02100840336 | M25: 0.35 | N25: 0.3
A26: Global1 | B26: 1 | C26: =IF(Cotizador!$B$3="Comercial",FACTORES!K26,IF(Cotizador!$B$3="Residencial",FACTORES!L26,"Revisar")) -> 0.04201680672 | D26: =IF(Cotizador!$B$3="Comercial",FACTORES!M26,IF(Cotizador!$B$3="Residencial",FACTORES!N26,"Revisar")) -> 0.6 | K26: 0.04201680672 | L26: 0.04201680672 | M26: 0.6 | N26: 0.6
A27: Global2 | B27: 2 | C27: =IF(Cotizador!$B$3="Comercial",FACTORES!K27,IF(Cotizador!$B$3="Residencial",FACTORES!L27,"Revisar")) -> 0.04201680672 | D27: =IF(Cotizador!$B$3="Comercial",FACTORES!M27,IF(Cotizador!$B$3="Residencial",FACTORES!N27,"Revisar")) -> 0.6 | K27: 0.04201680672 | L27: 0.04201680672 | M27: 0.6 | N27: 0.6
A28: Global3 | B28: 3 | C28: =IF(Cotizador!$B$3="Comercial",FACTORES!K28,IF(Cotizador!$B$3="Residencial",FACTORES!L28,"Revisar")) -> 0.04201680672 | D28: =IF(Cotizador!$B$3="Comercial",FACTORES!M28,IF(Cotizador!$B$3="Residencial",FACTORES!N28,"Revisar")) -> 0.6 | K28: 0.04201680672 | L28: 0.04201680672 | M28: 0.6 | N28: 0.6
A29: Global4 | B29: 4 | C29: =IF(Cotizador!$B$3="Comercial",FACTORES!K29,IF(Cotizador!$B$3="Residencial",FACTORES!L29,"Revisar")) -> 0.04201680672 | D29: =IF(Cotizador!$B$3="Comercial",FACTORES!M29,IF(Cotizador!$B$3="Residencial",FACTORES!N29,"Revisar")) -> 0.6 | K29: 0.04201680672 | L29: 0.04201680672 | M29: 0.6 | N29: 0.6
A30: Global5 | B30: 5 | C30: =IF(Cotizador!$B$3="Comercial",FACTORES!K30,IF(Cotizador!$B$3="Residencial",FACTORES!L30,"Revisar")) -> 0.04201680672 | D30: =IF(Cotizador!$B$3="Comercial",FACTORES!M30,IF(Cotizador!$B$3="Residencial",FACTORES!N30,"Revisar")) -> 0.6 | K30: 0.04201680672 | L30: 0.04201680672 | M30: 0.6 | N30: 0.6
A31: Global6 | B31: 6 | C31: =IF(Cotizador!$B$3="Comercial",FACTORES!K31,IF(Cotizador!$B$3="Residencial",FACTORES!L31,"Revisar")) -> 0.04201680672 | D31: =IF(Cotizador!$B$3="Comercial",FACTORES!M31,IF(Cotizador!$B$3="Residencial",FACTORES!N31,"Revisar")) -> 0.6 | K31: 0.04201680672 | L31: 0.04201680672 | M31: 0.6 | N31: 0.6
A32: Global7 | B32: 7 | C32: =IF(Cotizador!$B$3="Comercial",FACTORES!K32,IF(Cotizador!$B$3="Residencial",FACTORES!L32,"Revisar")) -> 0.03853501401 | D32: =IF(Cotizador!$B$3="Comercial",FACTORES!M32,IF(Cotizador!$B$3="Residencial",FACTORES!N32,"Revisar")) -> 0.55028 | K32: 0.03853501401 | L32: 0.03853501401 | M32: 0.55 | N32: 0.55028
A33: Global8 | B33: 8 | C33: =IF(Cotizador!$B$3="Comercial",FACTORES!K33,IF(Cotizador!$B$3="Residencial",FACTORES!L33,"Revisar")) -> 0.0350140056 | D33: =IF(Cotizador!$B$3="Comercial",FACTORES!M33,IF(Cotizador!$B$3="Residencial",FACTORES!N33,"Revisar")) -> 0.5 | K33: 0.0350140056 | L33: 0.0350140056 | M33: 0.5 | N33: 0.5
A34: Global9 | B34: 9 | C34: =IF(Cotizador!$B$3="Comercial",FACTORES!K34,IF(Cotizador!$B$3="Residencial",FACTORES!L34,"Revisar")) -> 0.0350140056 | D34: =IF(Cotizador!$B$3="Comercial",FACTORES!M34,IF(Cotizador!$B$3="Residencial",FACTORES!N34,"Revisar")) -> 0.5 | K34: 0.0350140056 | L34: 0.0350140056 | M34: 0.5 | N34: 0.5
A35: Global10 | B35: 10 | C35: =IF(Cotizador!$B$3="Comercial",FACTORES!K35,IF(Cotizador!$B$3="Residencial",FACTORES!L35,"Revisar")) -> 0.0350140056 | D35: =IF(Cotizador!$B$3="Comercial",FACTORES!M35,IF(Cotizador!$B$3="Residencial",FACTORES!N35,"Revisar")) -> 0.5 | K35: 0.0350140056 | L35: 0.0350140056 | M35: 0.5 | N35: 0.5
A36: Global11 | B36: 11 | C36: =IF(Cotizador!$B$3="Comercial",FACTORES!K36,IF(Cotizador!$B$3="Residencial",FACTORES!L36,"Revisar")) -> 0.0350140056 | D36: =IF(Cotizador!$B$3="Comercial",FACTORES!M36,IF(Cotizador!$B$3="Residencial",FACTORES!N36,"Revisar")) -> 0.5 | K36: 0.0350140056 | L36: 0.0350140056 | M36: 0.5 | N36: 0.5
A37: Global12 | B37: 12 | C37: =IF(Cotizador!$B$3="Comercial",FACTORES!K37,IF(Cotizador!$B$3="Residencial",FACTORES!L37,"Revisar")) -> 0.0350140056 | D37: =IF(Cotizador!$B$3="Comercial",FACTORES!M37,IF(Cotizador!$B$3="Residencial",FACTORES!N37,"Revisar")) -> 0.5 | K37: 0.0350140056 | L37: 0.0350140056 | M37: 0.5 | N37: 0.5
A38: Concesión de Espacios1 | B38: 1 | C38: =IF(Cotizador!$B$3="Comercial",FACTORES!K38,IF(Cotizador!$B$3="Residencial",FACTORES!L38,"Revisar")) -> 0 | D38: =IF(Cotizador!$B$3="Comercial",FACTORES!M38,IF(Cotizador!$B$3="Residencial",FACTORES!N38,"Revisar")) -> 0 | K38: 0.02941176471 | M38: 0.42
A39: Concesión de Espacios2 | B39: 2 | C39: =IF(Cotizador!$B$3="Comercial",FACTORES!K39,IF(Cotizador!$B$3="Residencial",FACTORES!L39,"Revisar")) -> 0 | D39: =IF(Cotizador!$B$3="Comercial",FACTORES!M39,IF(Cotizador!$B$3="Residencial",FACTORES!N39,"Revisar")) -> 0 | K39: 0.02941176471 | M39: 0.42
A40: Concesión de Espacios3 | B40: 3 | C40: =IF(Cotizador!$B$3="Comercial",FACTORES!K40,IF(Cotizador!$B$3="Residencial",FACTORES!L40,"Revisar")) -> 0 | D40: =IF(Cotizador!$B$3="Comercial",FACTORES!M40,IF(Cotizador!$B$3="Residencial",FACTORES!N40,"Revisar")) -> 0 | K40: 0.02941176471 | M40: 0.42
A41: Concesión de Espacios4 | B41: 4 | C41: =IF(Cotizador!$B$3="Comercial",FACTORES!K41,IF(Cotizador!$B$3="Residencial",FACTORES!L41,"Revisar")) -> 0 | D41: =IF(Cotizador!$B$3="Comercial",FACTORES!M41,IF(Cotizador!$B$3="Residencial",FACTORES!N41,"Revisar")) -> 0 | K41: 0.02941176471 | M41: 0.42
A42: Concesión de Espacios5 | B42: 5 | C42: =IF(Cotizador!$B$3="Comercial",FACTORES!K42,IF(Cotizador!$B$3="Residencial",FACTORES!L42,"Revisar")) -> 0 | D42: =IF(Cotizador!$B$3="Comercial",FACTORES!M42,IF(Cotizador!$B$3="Residencial",FACTORES!N42,"Revisar")) -> 0 | K42: 0.02941176471 | M42: 0.42
A43: Concesión de Espacios6 | B43: 6 | C43: =IF(Cotizador!$B$3="Comercial",FACTORES!K43,IF(Cotizador!$B$3="Residencial",FACTORES!L43,"Revisar")) -> 0 | D43: =IF(Cotizador!$B$3="Comercial",FACTORES!M43,IF(Cotizador!$B$3="Residencial",FACTORES!N43,"Revisar")) -> 0 | K43: 0.02941176471 | M43: 0.42
A44: Concesión de Espacios7 | B44: 7 | C44: =IF(Cotizador!$B$3="Comercial",FACTORES!K44,IF(Cotizador!$B$3="Residencial",FACTORES!L44,"Revisar")) -> 0 | D44: =IF(Cotizador!$B$3="Comercial",FACTORES!M44,IF(Cotizador!$B$3="Residencial",FACTORES!N44,"Revisar")) -> 0 | K44: 0.02661064826 | M44: 0.38
A45: Concesión de Espacios8 | B45: 8 | C45: =IF(Cotizador!$B$3="Comercial",FACTORES!K45,IF(Cotizador!$B$3="Residencial",FACTORES!L45,"Revisar")) -> 0 | D45: =IF(Cotizador!$B$3="Comercial",FACTORES!M45,IF(Cotizador!$B$3="Residencial",FACTORES!N45,"Revisar")) -> 0 | K45: 0.02450980392 | M45: 0.35
A46: Concesión de Espacios9 | B46: 9 | C46: =IF(Cotizador!$B$3="Comercial",FACTORES!K46,IF(Cotizador!$B$3="Residencial",FACTORES!L46,"Revisar")) -> 0 | D46: =IF(Cotizador!$B$3="Comercial",FACTORES!M46,IF(Cotizador!$B$3="Residencial",FACTORES!N46,"Revisar")) -> 0 | K46: 0.02450980392 | M46: 0.35
A47: Concesión de Espacios10 | B47: 10 | C47: =IF(Cotizador!$B$3="Comercial",FACTORES!K47,IF(Cotizador!$B$3="Residencial",FACTORES!L47,"Revisar")) -> 0 | D47: =IF(Cotizador!$B$3="Comercial",FACTORES!M47,IF(Cotizador!$B$3="Residencial",FACTORES!N47,"Revisar")) -> 0 | K47: 0.02450980392 | M47: 0.35
A48: Concesión de Espacios11 | B48: 11 | C48: =IF(Cotizador!$B$3="Comercial",FACTORES!K48,IF(Cotizador!$B$3="Residencial",FACTORES!L48,"Revisar")) -> 0 | D48: =IF(Cotizador!$B$3="Comercial",FACTORES!M48,IF(Cotizador!$B$3="Residencial",FACTORES!N48,"Revisar")) -> 0 | K48: 0.02450980392 | M48: 0.35
A49: Concesión de Espacios12 | B49: 12 | C49: =IF(Cotizador!$B$3="Comercial",FACTORES!K49,IF(Cotizador!$B$3="Residencial",FACTORES!L49,"Revisar")) -> 0 | D49: =IF(Cotizador!$B$3="Comercial",FACTORES!M49,IF(Cotizador!$B$3="Residencial",FACTORES!N49,"Revisar")) -> 0 | K49: 0.02450980392 | M49: 0.35

Sheet COTIZADOR APLICATIVO (hidden)
A6: Canon Mensual: | B6: Administración | C6: Servicios Públicos | D6: Daños y Faltantes | E6: Asistencia | H6: Tasa Aplicativo | I6: =B10*3.56% -> 427200
A7: =Cotizador!A7 -> 1000000 | B7: =Cotizador!C13 -> 1200000 | C7: =Cotizador!C14 -> 2000000 | D7: =Cotizador!E7 -> 500000 | E7: =Cotizador!C7 -> Si | H7: Tasa Aplicativo %º | I7: 35.6
B9: Valor asegurado | C9: Tasa Aplicativo | D9: Valor Prima Antes de IVA
A10: Canon | B10: =Cotizador!C11 -> 12000000 | C10: =I11 -> 21.00840336 | D10: =Cotizador!D11 -> 252100.8403 | H10: Valor Prima Antes de IVA | I10: =Cotizador!D11 -> 252100.8403
A11: Administración | B11: =B7 -> 1200000 | C11: =I11 -> 21.00840336 | D11: =Cotizador!D13 -> 25210.08403 | H11: Tasa Aplicar | I11: =(I10*I7)/I6 -> 21.00840336
A12: Servicios Públicos | B12: =C7 -> 2000000 | C12: - | D12: - | H12: Tasa Daños y faltantes | I12: 52
A13: Daños y Faltantes | B13: =D7 -> 500000 | C13: =I12 -> 52 | D13: =Cotizador!D15 -> 15000
A14: Asistencia | B14: =Cotizador!C16 -> 0 | C14: - | D14: =Cotizador!D16 -> 55000
C16: Total antes de IVA | D16: =SUM(D10:D14) -> 347310.9244
C17: IVA | D17: =SUM(Cotizador!E11:E16) -> 65989.07563
C18: TOTAL | D18: =D16+D17 -> 413300
